[Event "Grand Prix Romania 1st Stage 2024"]
[Site "Bucuresti"]
[Date "2024.03.23"]
[Round "4.32"]
[White "Bernadskiy, Vitaliy"]
[Black "Vasile, Matei"]
[Result "1-0"]
[ECO "B31"]
[WhiteElo "2573"]
[BlackElo "1803"]
[Annotator "TA"]
[PlyCount "60"]
[EventDate "2024.03.20"]
[EventType "swiss"]
[EventCountry "ROU"]
[SourceTitle "playchess.com"]
[Source "ChessBase"]
[SourceQuality "1"]
[TimeControl "900+5"]

{[%evp 13,60,0,35,21,35,31,37,31,75,47,105,85,102,106,154,145,146,140,175,133,228,204,422,437,452,445,445,465,476,492,486,473,494,490,551,510,718,727,925,919,1040,1050,1127,1095,2943,2729,29984,29985,29991]} 1. e4 {[%emt 0:00:01]} c5 {[%emt 0:00:01]} 2. Nf3 {[%emt 0:00:02]} Nc6 {[%emt 0:00:01]} 3. Bb5 {[%emt 0:00:02]} g6 {[%emt 0:00:02]} 4. O-O {[%emt 0:00:03]} Bg7 {[%emt 0:00:01]} 5. Re1 {[%emt 0:00:01]} Nf6 {[%emt 0:00:03]} 6. c3 {[%emt 0:00:06]} O-O {[%emt 0:00:04]} 7. h3 {[%emt 0:00:02]} Ne8 {[%emt 0:00:08]} 8. d4 {[%emt 0:00:04]} cxd4 {[%emt 0:00:02]} 9. cxd4 {[%emt 0:00:02]} Nc7 {[%emt 0:00:02]} 10. Bf1 {[%emt 0:00:07] White is slightly better.} d6 {[%emt 0:00:08]} 11. Nc3 {[%emt 0:00:04]} Bd7 {[%emt 0:00:04]} ({Black should play} 11... d5 $14) 12. Bg5 {[%emt 0:00:04]} Re8 {[%emt 0:00:42]} 13. Qd2 {[%emt 0:00:02] White is more active.} Ne6 {[%emt 0:01:38]} (13... f6 $142) 14. Be3 $16 {[%emt 0:00:03] [#] d5 is the strong threat.} Nb4 {[%emt 0:00:07]} 15. d5 {[%emt 0:00:19]} Nc5 {[%emt 0:00:13]} 16. e5 {[%emt 0:00:02]} Qc7 {[%emt 0:00:16]} (16... Rc8 $16 {might work better.} 17. Rad1 a5 (17... dxe5 $2 {is the wrong capture.} 18. Bxc5 Rxc5 19. Ne4 $18)) 17. Nb5 {[%emt 0:00:46]} Qb6 {[%emt 0:01:14]} (17... Qa5) 18. Qxb4 $18 {[%emt 0:00:10]} a6 {[%emt 0:00:01] [#]} 19. Qh4 $1 {[%emt 0:00:11]} Bxb5 {[%emt 0:00:24]} 20. b4 {[%emt 0:00:01][%cal Bb2b4,Bb4c5,Bc5d6,Bd6d7][%mdl 32]} dxe5 {[%emt 0:00:53]} 21. bxc5 {[%emt 0:00:09]} Qd8 {[%emt 0:00:07]} 22. Rad1 {[%emt 0:00:27]} Bxf1 {[%emt 0:00:13]} 23. Kxf1 {[%emt 0:00:04]} Qa5 {[%emt 0:00:04]} 24. Kg1 {[%emt 0:00:09]} Qxa2 {[%emt 0:00:04]} 25. d6 {[%emt 0:00:03]} exd6 {[%emt 0:00:14]} 26. cxd6 {[%emt 0:00:01]} Red8 {[%emt 0:00:26]} 27. d7 {[%emt 0:00:06]} f6 {[%emt 0:01:27]} 28. Bb6 {[%emt 0:00:05]} Qb3 {[%emt 0:00:26]} 29. Bxd8 {[%emt 0:00:03]} Rxd8 {[%emt 0:00:01]} 30. Nxe5 {[%emt 0:00:05]} Qa4 {[%emt 0:00:23] White took control after the opening.   Weighted Error Value: White=0.06 (flawless) /Black=0.56.  Mistake:       	---       	Black=4      Inaccurate:     	White=1     	Black=2      OK:         	White=8     	Black=4      Best:        	White=2     	---} 1-0

[Event "Grand Prix Romania 1st Stage 2024"]
[Site "Bucuresti"]
[Date "2024.03.23"]
[Round "4.33"]
[White "Parligras, Mircea-Emilian"]
[Black "Busuioc, Stelian-Marian"]
[Result "1-0"]
[ECO "E90"]
[WhiteElo "2543"]
[BlackElo "1843"]
[Annotator "TA"]
[PlyCount "83"]
[EventDate "2024.03.20"]
[EventType "swiss"]
[EventCountry "ROU"]
[SourceTitle "playchess.com"]
[Source "ChessBase"]
[SourceQuality "1"]
[TimeControl "900+5"]

{[%evp 13,83,33,53,31,76,50,62,61,95,76,106,107,114,78,99,94,93,89,163,168,184,140,152,146,171,177,179,169,153,162,167,158,212,231,308,308,298,305,290,296,300,281,291,302,331,320,361,352,829,849,829,842,805,842,997,987,1132,1126,1074,1036,1179,1132,1852,1746,29961,29957,6207,5847,5780,5606,1580,1445]} 1. d4 {[%emt 0:00:02]} d6 {[%emt 0:00:07]} 2. e4 {[%emt 0:00:03]} g6 {[%emt 0:00:01]} 3. c4 {[%emt 0:00:02]} Bg7 {[%emt 0:00:01]} 4. Nc3 {[%emt 0:00:01]} Nf6 {[%emt 0:00:01]} 5. h3 {[%emt 0:00:02]} O-O {[%emt 0:00:02]} 6. Be3 {[%emt 0:00:02]} Nbd7 {[%emt 0:00:02]} 7. Nf3 {[%emt 0:00:08]} e5 {[%emt 0:00:06]} 8. Bd3 {[%emt 0:00:02]} h6 {[%emt 0:00:21]} 9. O-O {[%emt 0:00:07] White is more active.} Nh5 {[%emt 0:00:19]} 10. Re1 {[%emt 0:00:26] White is slightly better.} c6 {[%emt 0:00:21]} 11. Qd2 {[%emt 0:00:03]} Kh7 {[%emt 0:00:48]} 12. Rad1 {[%emt 0:00:14]} Qe7 {[%emt 0:01:02]} 13. b4 {[%emt 0:00:25]} exd4 {[%emt 0:00:29]} 14. Nxd4 {[%emt 0:00:12]} Ne5 {[%emt 0:01:19][%cal Oc8h3]} 15. Be2 {[%emt 0:00:18]} Nf6 {[%emt 0:00:11]} (15... Qh4 $16) 16. f4 $18 {[%emt 0:02:44]} Ned7 {[%emt 0:00:12]} 17. Bf3 {[%emt 0:00:13]} Nb6 {[%emt 0:00:22]} 18. Qd3 {[%emt 0:00:13]} Be6 {[%emt 0:00:54]} 19. Nxe6 {[%emt 0:00:18]} Qxe6 {[%emt 0:00:02]} 20. c5 {[%emt 0:01:16]} ({Stronger than} 20. Qxd6 Qxd6 21. Rxd6 Nxc4 $11) 20... dxc5 {[%emt 0:00:18]} 21. bxc5 {[%emt 0:00:03]} Rfd8 {[%emt 0:02:09]} 22. Qe2 {[%emt 0:00:47]} ({Don't play} 22. Qxd8 $6 Rxd8 23. Rxd8 Nc4 $16) 22... Nc4 {[%emt 0:00:47]} (22... Ne8 $16) 23. Bf2 {[%emt 0:00:16]} Nh5 {[%emt 0:00:21]} 24. Bxh5 {[%emt 0:02:03]} Bxc3 {[%emt 0:00:06]} 25. Bg4 {[%emt 0:00:12]} f5 {[%emt 0:01:17][%cal Oc3e1]} 26. Rxd8 {[%emt 0:00:02]} Rxd8 {[%emt 0:00:09]} 27. exf5 {[%emt 0:00:05]} Qxe2 {[%emt 0:01:28]} 28. Rxe2 {[%emt 0:00:03]} Bf6 {[%emt 0:00:01] Prevents Re7+} 29. Re6 {[%emt 0:00:19]} Kg7 {[%emt 0:00:09]} 30. fxg6 {[%emt 0:00:03][%cal Oe6f6] Black must now prevent Rxf6!} Kxg6 {[%emt 0:00:23] [#]} (30... Rd5 31. Be2 Nd2) 31. Rxf6+ $1 {[%emt 0:00:03][%mdl 512]} Kxf6 {[%emt 0:00:03][%mdl 4096] Endgame. KRN-KB} 32. Bh4+ {[%emt 0:00:01]} Kf7 {[%emt 0:00:02]} 33. Bxd8 {[%emt 0:00:02]} Nd2 {[%emt 0:00:10]} 34. Bc8 {[%emt 0:00:11]} Ne4 {[%emt 0:00:08]} 35. Bxb7 {[%emt 0:00:02]} Nxc5 {[%emt 0:00:01]} 36. Bxc6 {[%emt 0:00:02]} Nd3 {[%emt 0:00:04]} 37. g3 {[%emt 0:00:10]} Nb4 {[%emt 0:00:01]} 38. Bb5 {[%emt 0:00:03] [#] Ba5 would now be deadly.} Kg6 {[%emt 0:00:05]} 39. a3 {[%emt 0:00:06]} Nd5 {[%emt 0:00:00]} 40. Bd3+ {[%emt 0:00:03] White is clearly winning.} Kg7 {[%emt 0:00:02]} 41. Kf2 {[%emt 0:00:08]} Nc3 {[%emt 0:00:09]} 42. Kf3 {[%emt 0:00:06] Weighted Error Value: White=0.08 (flawless) /Black=0.57.  Mistake:       	---       	Black=3      Inaccurate:     	White=2     	Black=4      OK:         	White=11    	Black=8      Best:        	White=2     	---} 1-0

[Event "Grand Prix Romania 1st Stage 2024"]
[Site "Bucuresti"]
[Date "2024.03.23"]
[Round "4.34"]
[White "Andries, Alf"]
[Black "Castellanos Rodriguez, Renier"]
[Result "0-1"]
[ECO "B22"]
[WhiteElo "2040"]
[BlackElo "2469"]
[Annotator "TA"]
[PlyCount "87"]
[EventDate "2024.03.20"]
[EventType "swiss"]
[EventCountry "ROU"]
[SourceTitle "playchess.com"]
[Source "ChessBase"]
[SourceQuality "1"]
[TimeControl "900+5"]

{[%evp 12,87,35,10,22,-37,-47,-33,-31,-52,-15,-42,-20,-10,0,-102,-16,-23,-31,-22,-37,-34,-18,-35,-28,-29,-29,-22,-17,-18,-27,-40,-18,-57,-57,-70,-58,-61,-52,-57,-54,-51,-47,-71,-5,-6,-6,-12,0,0,0,-21,-12,-18,-11,-14,0,0,0,0,35,-23,0,0,0,0,0,0,0,0,0,0,0,-327,-302,-469,-469,-29990]} 1. e4 {[%emt 0:00:02]} c5 {[%emt 0:00:01]} 2. c3 {[%emt 0:00:01]} Nf6 {[%emt 0:00:27]} 3. e5 {[%emt 0:00:01]} Nd5 {[%emt 0:00:02]} 4. Nf3 {[%emt 0:00:04]} d6 {[%emt 0:00:12]} 5. exd6 {[%emt 0:00:04]} Qxd6 {[%emt 0:00:14]} 6. d4 {[%emt 0:00:09]} cxd4 {[%emt 0:00:06]} 7. Nxd4 {[%emt 0:00:02]} a6 {[%emt 0:00:24] Dodges Nb5} 8. c4 {[%emt 0:00:40]} (8. Bc4 $11) 8... Nb4 $15 {[%emt 0:00:18][%cal Od6d4] And now ...Qxd4! would win.} 9. a3 {[%emt 0:00:09][%cal Ba2a3,Ba3b4,Bb4b5][%mdl 32] [#]} Qxd4 $1 {[%emt 0:02:27] Black is slightly better.} 10. axb4 $1 {[%emt 0:00:19]} Qxd1+ {[%emt 0:01:32]} 11. Kxd1 {[%emt 0:00:02]} Nc6 {[%emt 0:00:07]} 12. b5 {[%emt 0:00:14]} Nd4 {[%emt 0:00:05]} 13. f3 {[%emt 0:00:46] [#]} (13. Be3 $11 e5 (13... Bg4+ 14. f3 $14) 14. Bd3) 13... Nb3 {[%emt 0:00:11] Black is more active.} (13... Bf5 $1 $17 {[%cal Rf5c2] White must now prevent ...Bc2+.} 14. bxa6 bxa6) 14. Ra3 $11 {[%emt 0:00:10]} Nxc1 {[%emt 0:00:04]} 15. Kxc1 {[%emt 0:00:02]} e6 {[%emt 0:00:21]} 16. Ra2 {[%emt 0:00:49]} Bc5 {[%emt 0:00:10]} 17. Nc3 {[%emt 0:00:33]} Ke7 {[%emt 0:00:06]} 18. Bd3 {[%emt 0:00:15]} Bd7 {[%emt 0:00:08]} 19. bxa6 {[%emt 0:00:03]} Rxa6 {[%emt 0:00:33]} 20. Rxa6 {[%emt 0:00:36]} bxa6 {[%emt 0:00:01]} 21. Kc2 {[%emt 0:00:13]} a5 {[%emt 0:00:21]} 22. b3 {[%emt 0:00:28]} f5 {[%emt 0:00:10]} 23. Re1 {[%emt 0:00:07]} Kf6 {[%emt 0:00:06]} 24. f4 {[%emt 0:00:04]} Bd6 {[%emt 0:00:55]} 25. g3 {[%emt 0:00:16]} h6 {[%emt 0:00:01]} 26. Ra1 {[%emt 0:00:50]} Ra8 {[%emt 0:00:09]} 27. h4 {[%emt 0:00:10]} Bc5 {[%emt 0:00:25]} (27... Bc6 $17) 28. g4 {[%emt 0:00:18]} g6 {[%emt 0:00:08]} (28... fxg4 $2 {perishes.} 29. Ne4+ Kf7 30. Nxc5 $18) 29. h5 {[%emt 0:01:23]} gxh5 {[%emt 0:01:42]} (29... fxg4 $2 {is the wrong capture.} 30. Ne4+ (30. Bxg6 Ke7 $15) 30... Ke7 31. Nxc5 $18) (29... Bc6 {is more complex.} 30. hxg6 fxg4 31. Ne4+ Bxe4 32. Bxe4 Rd8) 30. gxf5 {[%emt 0:00:02]} exf5 {[%emt 0:00:20]} 31. Rh1 {[%emt 0:00:12]} Rg8 {[%emt 0:00:32]} 32. Nd5+ {[%emt 0:00:42]} Kf7 {[%emt 0:00:04]} 33. Rh2 {[%emt 0:00:41] Prevents Rg2+} Bd4 {[%emt 0:00:28]} 34. Be2 {[%emt 0:00:14]} Rg3 {[%emt 0:00:10]} 35. Bxh5+ {[%emt 0:00:11]} Kg7 {[%emt 0:00:02]} 36. Be2 {[%emt 0:00:10]} ({White should play} 36. Rd2 $14 Ba7 37. Nc3) 36... a4 {[%emt 0:00:10]} 37. bxa4 {[%emt 0:00:20]} Bxa4+ {[%emt 0:04:58] This pair of bishops is nice.} 38. Kd2 {[%emt 0:00:09]} Be8 {[%emt 0:00:00]} 39. Bd3 {[%emt 0:00:08]} Bg6 {[%emt 0:00:00]} 40. Kc2 {[%emt 0:00:42]} Bc5 {[%emt 0:00:00]} 41. Re2 {[%emt 0:01:39]} h5 {[%emt 0:00:00]} 42. Re5 $2 {[%emt 0:00:44][%mdl 8192]} (42. Ne7 $11) 42... h4 $19 {[%emt 0:00:00]} 43. Bxf5 {[%emt 0:00:42]} (43. Ne7 $142 Bxe7 44. Rxe7+ Kf6 45. Re2) 43... Bd6 {[%emt 0:00:00]} 44. Re6 {[%emt 0:03:19] Weighted Error Value: White=0.32/Black=0.13 (very precise) .  Loses game:     	White=1     	---        Mistake:       	White=5     	Black=2      Inaccurate:     	White=2     	Black=1      OK:         	White=15    	Black=11     Best:        	White=1     	Black=2      Strong:       	White=1     	---} (44. Ne7 $19 Bxe5 45. Nxg6) 0-1

[Event "Grand Prix Romania 1st Stage 2024"]
[Site "Bucuresti"]
[Date "2024.03.23"]
[Round "4.35"]
[White "Sofronie, Iulian"]
[Black "Arion, Ilie"]
[Result "1-0"]
[ECO "D00"]
[WhiteElo "2395"]
[BlackElo "1919"]
[Annotator "RC"]
[PlyCount "147"]
[EventDate "2024.03.20"]
[EventType "swiss"]
[EventCountry "ROU"]
[SourceTitle "playchess.com"]
[Source "ChessBase"]
[SourceQuality "1"]
[TimeControl "900+5"]

1. d4 {[%emt 0:00:02]} Nf6 {[%emt 0:00:04]} 2. Bf4 {[%emt 0:00:02]} c5 {[%emt 0:00:07]} 3. e3 {[%emt 0:00:28]} d5 {[%emt 0:00:02]} 4. c3 {[%emt 0:00:09]} Nc6 {[%emt 0:00:02]} 5. Nd2 {[%emt 0:00:38]} Bf5 {[%emt 0:00:03]} 6. Ngf3 {[%emt 0:00:09]} e6 {[%emt 0:00:18]} 7. Qb3 {[%emt 0:00:05]} Qb6 {[%emt 0:00:21]} 8. Qxb6 {[%emt 0:00:06]} axb6 {[%emt 0:00:01]} 9. Bb5 {[%emt 0:00:03]} Kd8 {[%emt 0:01:19]} 10. Bxc6 {[%emt 0:00:10]} bxc6 {[%emt 0:00:06]} 11. Ne5 {[%emt 0:00:01]} Ke8 {[%emt 0:00:32]} 12. Nxc6 {[%emt 0:00:02]} Nh5 {[%emt 0:00:13]} 13. Ne5 {[%emt 0:01:33]} Nxf4 {[%emt 0:00:02]} 14. exf4 {[%emt 0:00:01]} cxd4 {[%emt 0:00:24]} 15. cxd4 {[%emt 0:00:03]} f6 {[%emt 0:00:03]} 16. Nef3 {[%emt 0:00:05]} Bd6 {[%emt 0:00:11]} 17. g3 {[%emt 0:00:08]} Kd7 {[%emt 0:00:07]} 18. Ke2 {[%emt 0:02:53]} Rhc8 {[%emt 0:00:25]} 19. Ne1 {[%emt 0:00:02]} Ra4 {[%emt 0:00:36]} 20. Ndf3 {[%emt 0:00:47]} Be4 {[%emt 0:00:12]} 21. Ke3 {[%emt 0:00:42]} Rb4 {[%emt 0:00:22]} 22. Nd3 {[%emt 0:00:19]} Bxd3 {[%emt 0:00:07]} 23. Kxd3 {[%emt 0:00:01]} Rxb2 {[%emt 0:00:02]} 24. Rhb1 {[%emt 0:00:37]} Rcc2 {[%emt 0:00:07]} 25. Rxb2 {[%emt 0:00:02]} Rxb2 {[%emt 0:00:02]} 26. Ke3 {[%emt 0:00:03]} Bb4 {[%emt 0:00:11]} 27. a4 {[%emt 0:00:32]} Rb3+ {[%emt 0:00:29]} 28. Ke2 {[%emt 0:00:02]} Rb2+ {[%emt 0:00:26]} 29. Ke3 {[%emt 0:00:49]} Rb3+ {[%emt 0:00:03]} 30. Ke2 {[%emt 0:00:01]} Rb2+ {[%emt 0:00:01]} 31. Kf1 {[%emt 0:00:21]} Bc3 {[%emt 0:00:41]} 32. Rc1 {[%emt 0:00:46]} Rb3 {[%emt 0:00:06]} 33. Kg2 {[%emt 0:00:17]} Ra3 {[%emt 0:00:07]} 34. g4 {[%emt 0:00:18]} Ba5 {[%emt 0:00:22]} 35. f5 {[%emt 0:00:04]} exf5 {[%emt 0:00:05]} 36. gxf5 {[%emt 0:00:02]} Rxa4 {[%emt 0:00:03]} 37. Kg3 {[%emt 0:00:18]} b5 {[%emt 0:00:01]} 38. Rc5 {[%emt 0:00:05]} Bc7+ {[%emt 0:00:11]} 39. Kg2 {[%emt 0:00:01]} b4 {[%emt 0:00:11]} 40. Ne1 {[%emt 0:00:08]} Kd6 {[%emt 0:00:20]} 41. Rb5 {[%emt 0:00:02]} b3 {[%emt 0:00:10]} 42. Nf3 {[%emt 0:00:05]} Ra3 {[%emt 0:00:08]} 43. Nd2 {[%emt 0:00:02]} b2 {[%emt 0:00:25]} 44. Rxb2 {[%emt 0:00:02]} Rd3 {[%emt 0:00:15]} 45. Nf3 {[%emt 0:00:02]} g6 {[%emt 0:00:29]} 46. fxg6 {[%emt 0:00:02]} hxg6 {[%emt 0:00:01]} 47. h4 {[%emt 0:00:02]} Ke6 {[%emt 0:00:16]} 48. Rc2 {[%emt 0:00:12]} Bf4 {[%emt 0:00:22]} 49. Rc6+ {[%emt 0:00:40]} Kf5 {[%emt 0:00:03]} 50. Rc8 {[%emt 0:00:13]} Kg4 {[%emt 0:01:10]} 51. Rg8 {[%emt 0:00:05]} g5 {[%emt 0:00:13]} 52. hxg5 {[%emt 0:00:06]} fxg5 {[%emt 0:00:04]} 53. Rxg5+ {[%emt 0:00:04]} Bxg5 {[%emt 0:00:07]} 54. Ne5+ {[%emt 0:00:00]} Kf5 {[%emt 0:00:02]} 55. Nxd3 {[%emt 0:00:02]} Ke4 {[%emt 0:00:01]} 56. Nc5+ {[%emt 0:00:02]} Kf5 {[%emt 0:00:40]} 57. Kf3 {[%emt 0:00:01]} Bd2 {[%emt 0:00:19]} 58. Nb7 {[%emt 0:00:32]} Bb4 {[%emt 0:00:26]} 59. Ke3 {[%emt 0:00:02]} Ba3 {[%emt 0:00:33]} 60. Nc5 {[%emt 0:00:22]} Bc1+ {[%emt 0:00:08]} 61. Kd3 {[%emt 0:00:24]} Kf4 {[%emt 0:00:25]} 62. Kc2 {[%emt 0:00:01]} Ba3 {[%emt 0:00:14]} 63. Kb3 {[%emt 0:00:01]} Bxc5 {[%emt 0:01:22]} 64. dxc5 {[%emt 0:00:01]} Ke5 {[%emt 0:00:11]} 65. Kc3 {[%emt 0:00:01]} d4+ {[%emt 0:00:11]} 66. Kd3 {[%emt 0:00:01]} Kd5 {[%emt 0:00:12]} 67. c6 {[%emt 0:00:01]} Kxc6 {[%emt 0:00:02]} 68. Kxd4 {[%emt 0:00:01]} Kd6 {[%emt 0:00:23]} 69. Ke4 {[%emt 0:00:02]} Ke6 {[%emt 0:00:13]} 70. f3 {[%emt 0:00:01]} Kf6 {[%emt 0:00:06]} 71. Kf4 {[%emt 0:00:01]} Kg6 {[%emt 0:00:09]} 72. Ke5 {[%emt 0:00:02]} Kf7 {[%emt 0:00:33]} 73. Kf5 {[%emt 0:00:01]} Ke7 {[%emt 0:00:09]} 74. Kg6 {[%emt 0:00:01]} 1-0

[Event "Grand Prix Romania 1st Stage 2024"]
[Site "Bucuresti"]
[Date "2024.03.23"]
[Round "4.36"]
[White "Tamas, Christian-Arrydan"]
[Black "Stoleriu, George"]
[Result "0-1"]
[ECO "A40"]
[WhiteElo "2054"]
[BlackElo "2391"]
[Annotator "RC"]
[PlyCount "80"]
[EventDate "2024.03.20"]
[EventType "swiss"]
[EventCountry "ROU"]
[SourceTitle "playchess.com"]
[Source "ChessBase"]
[SourceQuality "1"]
[TimeControl "900+5"]

1. d4 {[%emt 0:00:01]} e6 {[%emt 0:00:00]} 2. c4 {[%emt 0:00:01]} b6 {[%emt 0:00:01]} 3. Nc3 {[%emt 0:00:02]} Bb7 {[%emt 0:00:01]} 4. e4 {[%emt 0:00:01]} Bb4 {[%emt 0:00:00]} 5. f3 {[%emt 0:00:01]} f5 {[%emt 0:00:17]} 6. Bd3 {[%emt 0:01:07]} Qh4+ {[%emt 0:01:50]} 7. g3 {[%emt 0:00:07]} Qh5 {[%emt 0:00:02]} 8. Bf4 {[%emt 0:01:59]} fxe4 {[%emt 0:01:10]} 9. fxe4 {[%emt 0:00:09]} Bxc3+ {[%emt 0:00:21]} 10. bxc3 {[%emt 0:00:02]} Qxd1+ {[%emt 0:00:01]} 11. Rxd1 {[%emt 0:00:42]} Nf6 {[%emt 0:00:02]} 12. d5 {[%emt 0:00:02]} d6 {[%emt 0:00:45]} 13. Nf3 {[%emt 0:02:21]} e5 {[%emt 0:00:05]} 14. Bc1 {[%emt 0:00:06]} O-O {[%emt 0:01:17]} 15. Ng5 {[%emt 0:00:22]} Bc8 {[%emt 0:00:01]} 16. O-O {[%emt 0:02:16]} h6 {[%emt 0:00:33]} 17. Ne6 {[%emt 0:00:01]} Bxe6 {[%emt 0:00:10]} 18. dxe6 {[%emt 0:00:01]} Nc6 {[%emt 0:01:45]} 19. c5 {[%emt 0:01:30]} bxc5 {[%emt 0:00:01]} 20. Rf3 {[%emt 0:00:03]} Kh7 {[%emt 0:00:21]} 21. Rdf1 {[%emt 0:00:43]} Na5 {[%emt 0:00:16]} 22. g4 {[%emt 0:01:19]} c4 {[%emt 0:00:02]} 23. Bc2 {[%emt 0:00:03]} Rae8 {[%emt 0:00:04]} 24. h4 {[%emt 0:00:01]} Kg6 {[%emt 0:01:58]} 25. g5 {[%emt 0:03:12]} hxg5 {[%emt 0:00:34]} 26. hxg5 {[%emt 0:00:01]} Nh7 {[%emt 0:00:01]} 27. Rxf8 {[%emt 0:00:02]} Nxf8 {[%emt 0:00:02]} 28. Ba4 {[%emt 0:00:01]} c6 {[%emt 0:00:34]} 29. Rf7 {[%emt 0:00:57]} Nxe6 {[%emt 0:00:02]} 30. Rxa7 {[%emt 0:00:02]} Rb8 {[%emt 0:00:31]} 31. Be3 {[%emt 0:00:01]} Nb3 {[%emt 0:00:19]} 32. Bxc6 {[%emt 0:00:12]} Nbc5 {[%emt 0:00:08]} 33. a4 {[%emt 0:00:11]} Nxg5 {[%emt 0:00:42]} 34. Bxc5 {[%emt 0:00:09]} dxc5 {[%emt 0:00:07]} 35. a5 {[%emt 0:00:01]} Rb2 {[%emt 0:00:12]} 36. a6 {[%emt 0:00:04]} Nf3+ {[%emt 0:00:14]} 37. Kf1 {[%emt 0:00:01]} Ra2 {[%emt 0:00:38]} 38. Ra8 {[%emt 0:00:09]} Kg5 {[%emt 0:00:28]} 39. Bb7 {[%emt 0:00:09]} Kf4 {[%emt 0:00:11]} 40. Rd8 {[%emt 0:00:06]} Ke3 {[%emt 0:00:08]} 0-1

[Event "Grand Prix Romania 1st Stage 2024"]
[Site "Bucuresti"]
[Date "2024.03.23"]
[Round "4.37"]
[White "Vedmediuc, Serghei"]
[Black "Gales, Randi-Ioan"]
[Result "1-0"]
[ECO "B30"]
[WhiteElo "2452"]
[BlackElo "2050"]
[Annotator "TA"]
[PlyCount "57"]
[EventDate "2024.03.20"]
[EventType "swiss"]
[EventCountry "ROU"]
[SourceTitle "playchess.com"]
[Source "ChessBase"]
[SourceQuality "1"]
[TimeControl "900+5"]

{[%evp 12,57,7,3,36,36,55,57,54,54,66,71,54,47,85,98,74,83,75,43,180,210,188,26,28,42,224,222,225,222,224,239,226,221,217,216,247,248,279,277,418,283,356,345,1118,1103,1166,1129]} 1. e4 {[%emt 0:00:01]} c5 {[%emt 0:00:01]} 2. Nf3 {[%emt 0:00:03]} Nc6 {[%emt 0:00:02]} 3. Bb5 {[%emt 0:00:05]} e6 {[%emt 0:00:05]} 4. O-O {[%emt 0:15:16]} Nge7 {[%emt 0:00:04]} 5. Re1 {[%emt 0:00:00]} a6 {[%emt 0:00:04][%cal Ba7a6,Ba6b5,Bb5b4][%mdl 32]} 6. Bf1 {[%emt 0:00:00]} d5 {[%emt 0:00:04]} 7. d3 {[%emt 0:00:00]} b5 {[%emt 0:01:52]} 8. a4 {[%emt 0:00:00]} Bb7 {[%emt 0:00:43]} 9. axb5 {[%emt 0:00:00]} axb5 {[%emt 0:00:02] White is slightly better.} 10. Rxa8 {[%emt 0:00:00]} Bxa8 {[%emt 0:02:29]} 11. Nc3 {[%emt 0:00:00]} b4 {[%emt 0:00:30]} 12. Na4 {[%emt 0:00:00]} Nc8 {[%emt 0:01:54]} 13. Bg5 {[%emt 0:00:00]} f6 {[%emt 0:01:33]} 14. exd5 {[%emt 0:00:00]} Qxd5 {[%emt 0:00:09]} 15. c4 {[%emt 0:00:00]} Qd7 {[%emt 0:00:56]} (15... bxc3 $14 16. Nxc3 Qd7) 16. Be3 $18 {[%emt 0:00:00]} Nd4 {[%emt 0:01:09] [#]} 17. Nxd4 {[%emt 0:00:00]} (17. Nxc5 $1 $18 Bxc5 18. Nxd4 Bxd4 19. Bxd4 Qxd4 20. Qa4+ (20. Rxe6+ Kf7 $17) 20... Kf7 21. Qxa8) 17... cxd4 $11 {[%emt 0:00:01]} 18. Bd2 $36 {[%emt 0:00:00][%cal Oa4c5][%mdl 2048] Hoping for Nc5! Black is under pressure.} Bc6 $2 {[%emt 0:00:52] [#]} (18... h5 $14) 19. Nc5 $1 $18 {[%emt 0:00:00][%mdl 512]} Bxc5 {[%emt 0:00:03]} 20. Qh5+ {[%emt 0:00:00]} g6 {[%emt 0:01:06]} 21. Qxc5 {[%emt 0:00:00]} b3 {[%emt 0:00:45]} 22. Qa3 {[%emt 0:00:00]} Kf7 {[%emt 0:01:24]} 23. Qxb3 {[%emt 0:00:00]} Ne7 {[%emt 0:00:38]} 24. Ra1 {[%emt 0:00:00]} h5 {[%emt 0:00:14]} 25. Qb6 {[%emt 0:00:00] Ra7 is the strong threat.} Qd6 {[%emt 0:00:20]} (25... Nc8 {was necessary.} 26. Qc5 h4) 26. Bb4 {[%emt 0:00:00]} Qb8 {[%emt 0:00:01]} 27. Qc5 {[%emt 0:00:00]} Re8 {[%emt 0:00:11]} (27... Nc8 28. Be1 (28. Qxc6 Qxb4 29. Qd7+ Qe7 $18) 28... Bb7 29. Qxd4 Re8) 28. Ra7 {[%emt 0:00:00][%cal Ra7e7]} Bb7 {[%emt 0:00:04]} 29. Qb6 {[%emt 0:00:00] Weighted Error Value: White=0.18 (very precise) /Black=0.57.  Loses game:     	---       	Black=1      Missed win:     	White=1     	---        Mistake:       	---       	Black=3      Inaccurate:     	White=2     	Black=1      OK:         	White=13    	Black=3      Best:        	White=3     	---        Brilliant:      	White=1     	---} 1-0